Cogmind - Beta 9.3 @@@ ROGUE MODE // 2019.12.18 @ 07:26:32 Player: HybriD Result: Destroyed by Y-54 Guardian with Flak Gun Performance ------------- Evolutions (4) 2000 Regions Visited (7) 1400 Robots Destroyed (21) 105 Value Destroyed (941) 941 Prototype IDs (7) 140 Alien Tech Used (0) 0 Bonus (192) 192 TOTAL SCORE: 4778 Bonus ------- Follower Combat Kills 213 Friendly Fire -21 Cogmind --------- Core Integrity 0/850 Matter 300/300 Energy 99/100 System Corruption 1% Temperature Cool (6) Movement Core (50) Location -6/Extension Parts ------- > --- POWER (2) -------- (None) > --- PROPULSION (6) --- (None) > --- UTILITY (5) ------ (None) > --- WEAPON (2) ------- (None) > --- INVENTORY (4) ---- Fission Core Advanced Heat Sink Heavy Laser Gauss Rifle Peak State ------------ > --- POWER ------------ Nuclear Core Light Nuclear Core > --- PROPULSION ------- Cooled Airjet Cesium-ion Thruster Improved VTOL Module Improved VTOL Module Improved VTOL Module > --- UTILITY ---------- Weight Redist. System Improved Light Armor Plating System Shield > --- WEAPON ----------- Pulse Rifle Assault Cannon > --- INVENTORY -------- Cesium-ion Thruster Gatling Laser Gatling Laser Gatling Laser [Rating: 41] Favorites ----------- Power Nuclear Core Engine Light Ion Engine Power Core Nuclear Core Propulsion Improved VTOL Module Leg Aluminum Leg Wheel Wheel Hover Unit Gravmag Array Flight Unit Improved VTOL Module Utility Propulsion Shielding Device Improved Heat Sink Storage Large Storage Unit Processor Seismic Analyzer Hackware System Shield Protection Propulsion Shielding Weapon Light Assault Rifle Energy Gun Pulse Rifle Ballistic Gun Light Assault Rifle Ballistic Cannon Assault Cannon Build | -11 -10 -9 -9 -8 -7 -6 -6 ------- Run | Scr Mat Mat Min Mat Fac Fac Ext Slots Evolved 8 | . . 2 . 2 2 2 . Power 1 | . . . . 1 . . . Propulsion 4 | . . 1 . 1 1 1 . Utility 3 | . . 1 . . 1 1 . Weapon . | . . . . . . . . Parts Attached 91 | 4 4 . 10 44 8 7 14 Power 23 | . . . 2 18 . 2 1 Engine 10 | . . . 2 6 . 1 1 Core 13 | . . . . 12 . 1 . Reactor . | . . . . . . . . Propulsion 34 | 2 . . 5 11 7 3 6 Treads . | . . . . . . . . Leg 7 | . . . 3 1 . . 3 Wheel 2 | 2 . . . . . . . Hover 7 | . . . . . 2 2 3 Flight 18 | . . . 2 10 5 1 . Utility 12 | 1 3 . . 7 . . 1 Device 3 | . . . . 2 . . 1 Storage 3 | 1 1 . . 1 . . . Processor 1 | . 1 . . . . . . Hackware 1 | . . . . 1 . . . Protection 4 | . 1 . . 3 . . . Artifact . | . . . . . . . . Weapon 22 | 1 1 . 3 8 1 2 6 Energy Gun 13 | . 1 . 1 6 1 2 2 Energy Cannon . | . . . . . . . . Ballistic Gun 7 | 1 . . 2 . . . 4 Ballistic Cannon 2 | . . . . 2 . . . Launcher . | . . . . . . . . Special Weapon . | . . . . . . . . Impact Weapon . | . . . . . . . . Slashing Weapon . | . . . . . . . . Piercing Weapon . | . . . . . . . . Special Melee Weapon . | . . . . . . . . Unidentified Prototypes 1 | . . . . . 1 . . Parts Lost 42 | . . . 7 10 6 4 15 Power 7 | . . . 1 2 1 1 2 Propulsion 15 | . . . 3 2 3 1 6 Utility 5 | . . . . 2 2 . 1 Weapon 15 | . . . 3 4 . 2 6 Highest Loss Streak 7 | . . . 6 6 3 4 7 Average Slot Usage (%) 60 | . 78 66 59 77 67 33 35 Engine 4 | . . . 5 7 . 1 5 Core 3 | . . . . 8 12 2 . Leg 5 | . . . 9 8 . . 2 Wheel 4 | . 28 22 6 . . . . Hover 2 | . . . . . . 10 9 Flight 12 | . . . 6 25 26 10 3 Device 2 | . . . . 3 3 . 4 Storage 3 | . 14 11 3 2 . . . Hackware 1 | . . . . 2 6 . . Protection 5 | . 10 11 11 3 4 . . Energy Gun 7 | . 9 11 8 11 4 4 4 Ballistic Gun 5 | . 14 11 8 2 . . 3 Ballistic Cannon 1 | . . . . . 7 2 . Naked Turns 7 | . . . . . . . 7 Heaviest Build 25 | 5 20 20 20 25 24 17 23 Greatest Support 55 | 20 20 20 20 40 30 39 55 Greatest Overweight (x) 5 | 1 . . 5 1 2 1 2 Average Overweight (x) . | . . . . . . . . Largest Inventory Capacity 12 | 6 12 10 10 10 4 4 4 Average Capacity 5 | 5 9 10 6 5 4 4 4 Most Carried 7 | 4 6 4 5 7 4 4 4 Average Carried 2 | 3 4 4 3 2 3 2 1 Final Capacity 10 | 6 10 10 4 4 4 4 4 Final Carried 4 | 4 4 4 4 4 4 1 4 Class Distribution -------------------- 54% | Mutant 24% | Sprinter 20% | Scavenger-Mutant Dominant Class ---------------- Mutant | -10/Materials Mutant | -9/Materials Mutant | -9/Mines Sprinter | -8/Materials Sprinter | -7/Factory Mutant | -6/Factory Mutant | -6/Extension Resources | -11 -10 -9 -9 -8 -7 -6 -6 ----------- Run | Scr Mat Mat Min Mat Fac Fac Ext Matter Collected 1268 | 240 51 . 115 377 57 . 428 Remotely . | . . . . . . . . Salvage Created 911 | . 49 . 168 225 57 . 412 Parts 48 | . 1 . 6 12 1 . 28 Haulers Intercepted . | . . . . . . . . Recyclers Shooed 2 | . . . 1 . . . 1 Parts Field Recycled . | . . . . . . . . Retrieved Matter . | . . . . . . . . Parts Self-Destructed . | . . . . . . . . Prevented . | . . . . . . . . Kills | -11 -10 -9 -9 -8 -7 -6 -6 ------- Run | Scr Mat Mat Min Mat Fac Fac Ext Combat Hostiles Destroyed 19 | . 1 . 5 5 1 . 7 Melee 1 | . . . . 1 . . . Guns 17 | . 1 . 5 4 . . 7 Cannons 1 | . . . . . 1 . . Classes Destroyed 8 | . 1 . 1 2 1 . 3 Operator 1 | . . . . . . . 1 Watcher 1 | . . . . . . . 1 Swarmer 2 | . . . 2 . . . . Grunt 9 | . 1 . 3 3 . . 2 Brawler 1 | . . . . . 1 . . Sentry 2 | . . . . 1 . . 1 Hunter 4 | . . . . 1 . . 3 Programmer 1 | . . . . . . . 1 Best Kill Streak 3 | . 1 . 2 2 1 . 3 Combat Bots Only 2 | . 1 . 2 2 1 . 2 Max Kills in Single Turn 1 | . 1 . 1 1 1 . 1 Gunslinging . | . . . . . . . . Exploded . | . . . . . . . . Melee 1 | . . . . 1 . . . Uniques/NPCs Destroyed . | . . . . . . . . Combat | -11 -10 -9 -9 -8 -7 -6 -6 -------- Run | Scr Mat Mat Min Mat Fac Fac Ext Damage Taken 4468 | . 117 30 704 945 614 171 1887 Core 1492 | . 21 15 295 183 123 . 855 Absorbed by Shields . | . . . . . . . . Core Remaining (%) 72 | 100 91 . 22 66 82 . . Volleys Fired 149 | . 11 . 34 36 22 9 37 Largest 2 | . 2 . 2 2 2 2 2 Hottest 143 | . 60 . 60 126 124 143 110 Shots Fired 215 | . 22 . 49 52 27 15 50 Gun 189 | . 22 . 49 52 5 11 50 Cannon 26 | . . . . . 22 4 . Launcher . | . . . . . . . . Special . | . . . . . . . . Kinetic 132 | . 11 . 34 27 22 4 34 Thermal 65 | . . . 8 25 5 11 16 Explosive . | . . . . . . . . Electromagnetic 18 | . 11 . 7 . . . . Robot Hit Streak 22 | . 4 . 8 22 10 3 12 Robot Miss Streak 6 | . 2 . 4 4 3 6 6 Penetration Max 1 | . . . . . . . 1 Secondary Targets 2 | . . . 1 1 . . . Max Gunslinging Chain 1 | . . . 1 1 . . . Shots Hit Robots 149 | . 12 . 28 42 21 5 41 Core Hits 79 | . 2 . 11 20 5 1 40 Critical Hits . | . . . . . . . . Critical Kills . | . . . . . . . . Critical Parts Destroyed . | . . . . . . . . Melee Attacks . | . . . . . . . . Impact . | . . . . . . . . Slashing . | . . . . . . . . Piercing . | . . . . . . . . Sneak Attacks . | . . . . . . . . Combat Hostiles . | . . . . . . . . Follow-up Attacks . | . . . . . . . . Damage Inflicted 2579 | . 126 . 290 517 482 111 1053 Guns 2093 | . 126 . 288 505 80 57 1037 Cannons 456 | . . . . . 402 54 . Explosions . | . . . . . . . . Melee . | . . . . . . . . Ramming 30 | . . . 2 12 . . 16 Kinetic 1519 | . 26 . 151 156 402 54 730 Thermal 851 | . . . 58 349 80 57 307 Explosive . | . . . . . . . . Electromagnetic 179 | . 100 . 79 . . . . Impact . | . . . . . . . . Slashing . | . . . . . . . . Piercing . | . . . . . . . . Highest Corruption 5 | . . . . 5 5 . 1 Average Corruption 2 | . . . . 2 4 . 1 Corruption Purged . | . . . . . . . . Effects 8 | . . . . 2 3 . 3 Message Errors 2 | . . . . 1 1 . . Energy Discharges 3 | . . . . . . . 3 Parts Rejected 2 | . . . . 1 1 . . Targeting Errors 1 | . . . . . 1 . . Overload Shots . | . . . . . . . . Overflow Damage 21 | . . . . . 21 . . Projectiles 21 | . . . . . 21 . . Explosions . | . . . . . . . . Melee . | . . . . . . . . Knockbacks 10 | . . . . . 9 1 . Impact . | . . . . . . . . Kinetic 6 | . . . . . 5 1 . Secondary 4 | . . . . . 4 . . Self-Inflicted Damage 11 | . . . . 4 . . 7 Shots . | . . . . . . . . Rammed 11 | . . . 3 4 . . 4 Targets Rammed 13 | . . . 3 6 . . 4 Kicked 2 | . . . . 2 . . . Crushed . | . . . . . . . . Highest Temperature 557 | . 32 . 47 557 491 273 52 Average Temperature 145 | . 14 . 15 164 212 159 18 Received Heat Transfer 1362 | . 66 9 312 297 237 81 360 Effects 19 | . . . . 11 8 . . Shutdowns 8 | . . . . 4 4 . . Energy Bleed 2 | . . . . 1 1 . . Interference 1 | . . . . 1 . . . Matter Decay 3 | . . . . 2 1 . . Short Circuit 1 | . . . . 1 . . . Damage (minor) 4 | . . . . 2 2 . . Siege Activations . | . . . . . . . . Robots Corrupted . | . . . . . . . . Combat Hostiles . | . . . . . . . . Parts Fried 2 | . 2 . . . . . . Impact Corruptions . | . . . . . . . . Robots Melted . | . . . . . . . . Combat Hostiles . | . . . . . . . . Parts Melted 2 | . . . . . . . 2 Heat Transferred 1836 | . . . 125 777 174 125 635 Parts Sabotaged . | . . . . . . . . Parts Stolen . | . . . . . . . . Parts Stripped . | . . . . . . . . Power Chain Reactions . | . . . . . . . . Missiles Intercepted . | . . . . . . . . Alert | -11 -10 -9 -9 -8 -7 -6 -6 ------- Run | Scr Mat Mat Min Mat Fac Fac Ext Peak Influence 314 | . 86 50 314 173 80 47 191 Average Influence 79 | . 15 35 153 81 31 30 74 Maximum Alert Level 1 | . . . 1 . . . . Low Security (%) 92 | 100 100 100 69 100 100 100 100 Level 1 7 | . . . 30 . . . . Level 2 . | . . . . . . . . Level 3 . | . . . . . . . . Level 4 . | . . . . . . . . Level 5 . | . . . . . . . . High Security . | . . . . . . . . Max Security . | . . . . . . . . Squads Dispatched 9 | . . . . . 5 1 3 Investigation 4 | . . . . . 3 . 1 Extermination . | . . . . . . . . Reinforcement 3 | . . . . . . 1 2 Assault . | . . . . . . . . Garrison 2 | . . . . . 2 . . Intercept . | . . . . . . . . Construction Impeded . | . . . . . . . . Haulers Reinforced . | . . . . . . . . Stealth | -11 -10 -9 -9 -8 -7 -6 -6 --------- Run | Scr Mat Mat Min Mat Fac Fac Ext Distress Signals 5 | . . 1 . 2 . . 2 Communications Jammed . | . . . . . . . . Distress Signals . | . . . . . . . . Times Spotted 86 | . 1 2 23 21 18 3 18 Peak Tracking Total 14 | . 1 5 7 11 14 1 4 Tactical Retreats 7 | . . . 3 1 1 1 1 Traps | -11 -10 -9 -9 -8 -7 -6 -6 ------- Run | Scr Mat Mat Min Mat Fac Fac Ext Traps Triggered 1 | . . . . . 1 . . Indirectly . | . . . . . . . . Trap Hack Attempts . | . . . . . . . . Triggered . | . . . . . . . . Disarmed . | . . . . . . . . Reprogrammed . | . . . . . . . . Reused . | . . . . . . . . Traps Extracted . | . . . . . . . . Installed . | . . . . . . . . Triggered . | . . . . . . . . Machines | -11 -10 -9 -9 -8 -7 -6 -6 ---------- Run | Scr Mat Mat Min Mat Fac Fac Ext Machines Disabled 3 | . . . . 1 1 . 1 Max in Single Turn 1 | . . . . 1 1 . . Machines Sabotaged . | . . . . . . . . Garrisons Compromised . | . . . . . . . . Overloaded Fab Kills . | . . . . . . . . Fab Network Shutdowns . | . . . . . . . . Hacking | -11 -10 -9 -9 -8 -7 -6 -6 --------- Run | Scr Mat Mat Min Mat Fac Fac Ext Machines Accessed 18 | . 5 1 . 4 2 2 4 Terminals 15 | . 4 1 . 4 1 1 4 Fabricators 1 | . . . . . . 1 . Repair Stations . | . . . . . . . . Recycling Units 2 | . 1 . . . 1 . . Scanalyzers . | . . . . . . . . Garrison Access . | . . . . . . . . Total Hacks 49 | . 11 6 . 9 12 3 8 Successful 24 | . 8 3 . 4 6 1 2 Failed 22 | . 3 3 . 5 3 2 6 Catastrophic 3 | . 1 1 . . . . 1 Database Lockouts 3 | . . . . . 3 . . Manual 2 | . 1 . . 1 . . . Terminals 39 | . 9 6 . 9 5 2 8 Fabricators 1 | . . . . . . 1 . Repair Stations . | . . . . . . . . Recycling Units 9 | . 2 . . . 7 . . Scanalyzers . | . . . . . . . . Garrison Access . | . . . . . . . . Terminal Hacks 18 | . 6 3 . 4 2 1 2 Record 2 | . . . . . 2 . . Robot Analysis 1 | . 1 . . . . . . Prototype ID Bank 3 | . 2 . . 1 . . . Open Door 2 | . . . . . . 1 1 Alert Level 2 | . . 1 . 1 . . . Locate Traps 4 | . 1 1 . 1 . . 1 Zone Layout 4 | . 2 1 . 1 . . . Fabricator Hacks . | . . . . . . . . Repair Station Hacks . | . . . . . . . . Recycling Unit Hacks 6 | . 2 . . . 4 . . Process 2 | . 1 . . . 1 . . Report Inventory 2 | . 1 . . . 1 . . Retrieve Matter 1 | . . . . . 1 . . Retrieve Components 1 | . . . . . 1 . . Scanalyzer . | . . . . . . . . Garrison Access Hacks . | . . . . . . . . Unauthorized Hacks . | . . . . . . . . Terminals . | . . . . . . . . Fabricators . | . . . . . . . . Repair Stations . | . . . . . . . . Recycling Units . | . . . . . . . . Scanalyzers . | . . . . . . . . Garrison Access . | . . . . . . . . Data Cores Recovered . | . . . . . . . . Used . | . . . . . . . . Hacking Detections 15 | . 5 1 . 4 . 2 3 Full Trace Events 3 | . 1 . . 1 . . 1 Feedback Events 1 | . . . . . . . 1 Corruption 1 | . . . . . . . 1 Feedback Blocked . | . . . . . . . . Robot Schematics Acquired . | . . . . . . . . Robots Built . | . . . . . . . . Matter . | . . . . . . . . Time . | . . . . . . . . Total Robot Build Rating . | . . . . . . . . Part Schematics Acquired . | . . . . . . . . Parts Built . | . . . . . . . . Matter . | . . . . . . . . Time . | . . . . . . . . Total Part Build Rating . | . . . . . . . . Parts Repaired . | . . . . . . . . Time . | . . . . . . . . Parts Recycled . | . . . . . . . . Recycled Matter 7 | . 1 . . . 6 . . Retrieved Matter 6 | . . . . . 6 . . Retrieved Components . | . . . . . . . . Parts Scanalyzed . | . . . . . . . . Part Schematics Acquired . | . . . . . . . . Parts Damaged . | . . . . . . . . Bothacking | -11 -10 -9 -9 -8 -7 -6 -6 ------------ Run | Scr Mat Mat Min Mat Fac Fac Ext Used RIF Installer . | . . . . . . . . Robots Hacked . | . . . . . . . . Non-combat . | . . . . . . . . Combat . | . . . . . . . . Robot Hacks Applied . | . . . . . . . . Relay Couplers Released . | . . . . . . . . Robots Rewired . | . . . . . . . . Allies Hacked . | . . . . . . . . Hacks Repelled . | . . . . . . . . Allies | -11 -10 -9 -9 -8 -7 -6 -6 -------- Run | Scr Mat Mat Min Mat Fac Fac Ext Total Allies 4 | . . . 3 . . . 1 Largest Group 3 | . . . 3 2 . . 1 Highest-Rated Group 40 | . . . 40 24 . . 37 Highest-Rated Ally 37 | . . . 16 16 . . 37 Total Orders . | . . . . . . . . Ally Attacks 74 | . . . 61 7 . . 6 Total Damage 748 | . . . 565 87 . . 96 Kills 10 | . . . 8 1 . . 1 Allies Corrupted . | . . . . . . . . Allies Melted . | . . . . . . . . Intel | -11 -10 -9 -9 -8 -7 -6 -6 ------- Run | Scr Mat Mat Min Mat Fac Fac Ext Robot Analysis Total 1 | . 1 . . . . . . Derelict Logs Recovered . | . . . . . . . . Drone Launches . | . . . . . . . . Drone Recoveries . | . . . . . . . . Exploration | -11 -10 -9 -9 -8 -7 -6 -6 ------------- Run | Scr Mat Mat Min Mat Fac Fac Ext Turns Passed 1891 | 40 179 49 483 428 250 110 352 Spaces Moved 1941 | 40 163 61 452 501 294 150 280 Core 165 | 16 . . 126 . 1 . 22 Treads . | . . . . . . . . Legs 75 | . . . 4 42 . . 29 Wheels 366 | 24 163 61 118 . . . . Hover 270 | . . . . . 3 38 229 Flight 1065 | . . . 204 459 290 112 . Fastest Speed 26 | 50 80 80 37 26 27 34 50 Average Speed 55 | 73 80 80 72 37 33 41 66 Slowest Speed 300 | 100 80 80 300 120 150 109 180 Overloaded Moves . | . . . . . . . . Propulsion Burnouts . | . . . . . . . . Robots Hopped 11 | . . . . 7 4 . . Cave-ins Triggered . | . . . . . . . . Exploration Rate (%) 26 | 4 38 9 69 43 10 5 36 Regions Visited 7 Branch Regions 2 Pre-discovered Areas . | . . . . . . . . Known Exits Taken . | . . . . . . . . Unknown Exits Taken 7 | 1 1 1 1 1 1 1 . Scrap Searched 1 | . . . 1 . . . . Spaces Dug . | . . . . . . . . Terrain Destroyed 1 | . . . . . . . 1 Melee . | . . . . . . . . Projectile 1 | . . . . . . . 1 AOE . | . . . . . . . . Actions | -11 -10 -9 -9 -8 -7 -6 -6 --------- Run | Scr Mat Mat Min Mat Fac Fac Ext Total 2528 | 49 192 60 559 683 413 179 393 Wait 254 | . 9 . 52 57 84 12 40 Move 1912 | 39 162 60 451 486 285 149 280 Hop 11 | . . . . 7 4 . . Pick Up 65 | 6 4 . 8 29 2 2 14 Fast Attach 14 | 2 . . 1 4 3 2 2 Attach 55 | 2 4 . 8 21 3 5 12 Detach 2 | . . . . . 1 . 1 Swap 22 | . . . 1 19 2 . . Drop 31 | . 2 . 1 18 7 . 3 Fire 149 | . 11 . 34 36 22 9 37 Melee . | . . . . . . . . Ram 7 | . . . 3 . . . 4 Kick 6 | . . . . 6 . . . Crush . | . . . . . . . . Escape Stasis . | . . . . . . . . Rewire . | . . . . . . . . Trap . | . . . . . . . . Miscellaneous . | . . . . . . . . Route ------- -11/Scrapyard -10/Materials -9/Materials -9/Mines -8/Materials -7/Factory -6/Factory -6/Extension History --------- Turn | Location | Event 21 | -11/Scrapyard | Discovered new exit (range 15) 41 | -11/Scrapyard | Entered Materials 194 | -10/Materials | Discovered new exit (range 16) 220 | -10/Materials | Entered another Materials area 220 | -9/Materials | Evolved 2 slots: Propulsion x1, Utility x1 251 | -9/Materials | Discovered new exit (range 15) 269 | -9/Materials | Entered Mines 300 | -9/Mines | Build established: Mutant 428 | -9/Mines | Core integrity fell below 50% 453 | -9/Mines | Lost 6 parts (1p2n3w) 453 | -9/Mines | Assisted by bots powering up and referring to "LRC-V3" 723 | -9/Mines | Found a hidden stash of uninstalled traps 734 | -9/Mines | Discovered new exit (range 5) 752 | -9/Mines | Entered Materials 752 | -8/Materials | Accompanied by 2 allies 752 | -8/Materials | Evolved 2 slots: Power x1, Propulsion x1 903 | -8/Materials | Lost 6 parts (2p1n1u2w) 1170 | -8/Materials | Discovered new exit (range 8) 1180 | -8/Materials | Entered Factory 1180 | -7/Factory | Evolved 2 slots: Propulsion x1, Utility x1 1236 | -7/Factory | Build established: Sprinter 1305 | -7/Factory | Garrison activated, responded to threat 1418 | -7/Factory | Central database locked down 1418 | -7/Factory | Central database locked down 1418 | -7/Factory | Central database locked down 1423 | -7/Factory | Discovered new exit (range 10) 1430 | -7/Factory | Entered another Factory area 1430 | -6/Factory | Evolved 2 slots: Propulsion x1, Utility x1 1445 | -6/Factory | Lost 3 parts (1p1n1u) 1535 | -6/Factory | Lost 4 parts (1p1n2w) 1536 | -6/Factory | Discovered new exit (range 10) 1540 | -6/Factory | Entered Extension 1687 | -6/Extension | Rescued a captive Derelict 1721 | -6/Extension | Build established: Mutant 1801 | -6/Extension | Lost 7 parts (1p3n3w) 1873 | -6/Extension | Spotted B-75 Beast 1879 | -6/Extension | Core integrity fell below 50% 1881 | -6/Extension | Spotted B-75 Beast 1890 | -6/Extension | Core integrity fell below 20% 1892 | -6/Extension | Destroyed by Y-54 Guardian with Flak Gun Last Messages --------------- 01834_ R-10 Processor destroyed. 01837_ H-66 Slayer destroyed. 01841_ Acquired 9 matter. 01845_ Acquired Hover Unit. 01847_ Acquired Flexi-carbon Leg. 01849_ Acquired Gauss Rifle. 01851_ Acquired Hvy. Assault Rifle. 01852_ Acquired 20 matter. 01855_ Acquired Flexi-carbon Leg. 01857_ Acquired 20 matter. 01878_ Knocked back. 01879_ Dropped Carbon-fiber Leg. 01879_ Dropped Flexi-carbon Leg. 01881_ Machine disabled. 01882_ Imp. Hover Unit destroyed. 01885_ Hvy. Assault Rifle destroyed. 01885_ Hover Unit destroyed. 01885_ Lgt. Angular Momentum Engine destroyed. 01885_ Imp. Heat Sink destroyed. 01889_ Knocked back. Map ----- +----------------------------------------------------+ | #?????????#!#?????# #?????????????????????????? | | ####?????????# #?????# #?????????????????????????? | | ?????????????# #?????# #?????????????????????????? | | ?????????????# ##????# #?????????????????????????? | | ?????????????# T#????# #?????????????????????????? | | ?????????????# ##????# #?????????????????????????? | | ?????????????# #?????# #?????????????????????????? | | ?????????????###?????# #?????????????????????????? | | ?????????????????????# #?????????????????????????? | | ?????????????????????# #?????????????????????????? | | ?????????????????????#=#??????????#??????????????? | | ?????????????????????#=#?###?##?? #??????????????? | | ???????????????????###=### ## ### ###????????????? | | ???????????????????#"" "" "" ""#????????????? | | ???????????????????# " Y " " #????????????? | | ???????????????????# Y #????????????? | | ???????????????????#R #????????????? | | ????????????######## ######???????? | | ??????????? ??????? | | ??????????? ??????? | | ??????????? ??????? | | ??????????? u ??????? | | ??????????? BB ku ??????? | | ????????????######## BB BB ######???????? | | ???????????????????# BB #????????????? | | ???????????????????# @ #????????????? | | ???????????????????# #????????????? | | ???????????????????# #????????????? | | ???????????????????##;###T#"""#######????????????? | | ????????????????????#???##???????????????????????? | | ?????????????????????????????????????????????????? | | | | | | | | | | | | | | | | | | | | | | | | | | | | | | | | | | | | | | | +----------------------------------------------------+ Best States ------------- Heat Dissipation 51 Energy Generation 23 Energy Capacity 420 Matter Stores 300 Matter Capacity 300 Sight Range 16 Terrain Scan Density 60 Additional Mass Support 6 Armor Coverage 150 Resistance: TH 10 Propulsion Shielding 33 Evasion (%) 70 Defensive Hacking 10 Item Schematics ----------------- None Robot Schematics ------------------ None Fabricated ------------ Nothing Alien Tech Used ----------------- None Achievements -------------- Party Time Challenges ------------ None Game ------ Seed RefineryMeleeRedistributor Manual? 0 Play Time 00:44:11 Cumulative 93.3 hours Start 2019.12.18 @ 06:42:39 End 2019.12.18 @ 07:26:32 Sessions 1 Manual Loads 0 Difficulty Rogue Special Mode None Game No. 86 Rogue 86 Adventurer 0 Explorer 0 Win Type - Total 0 Types 0/0/0/0/0/0/0 Lore% 44 Gallery% 61 Achievement% 28 Wizard Run 0 Options --------- ASCII 0 Keyboard 0 Movement Mouse Keybinds 0 Fullscreen 2 Font 18/Terminus Map View 76x50 Tactical HUD 1 Map Filters NONE Filters NONE Steam 1 RUN: 6df6b48b-eafa-4c4f-af34-76069845fe47